fUSD/lending_fUSD_20240708
["ID","MTS","AMOUNT","RATE_DAILY","PERIOD"]
[331509497,1720444825462,-1885.58,0.0005315,120]
[331509498,1720444825556,-500.0,0.0005315,120]
[331509499,1720444825652,-20208.54,0.0005315,120]
[331509500,1720444825754,-5732.02,0.0005315,120]
[331509501,1720444825855,-3467.68,0.0005315,120]
[331509502,1720444825957,-3285.94,0.0005315,120]
[331509503,1720444826050,-843.34,0.0005315,120]
[331509504,1720444826145,-500.0,0.0005315,120]
[331509505,1720444826241,-4518.2,0.0005315,120]
[331509506,1720444826338,-579.73,0.0005315,120]
[331509507,1720444826430,-7921.19,0.0005315,120]
[331509508,1720444826520,-2995.09,0.0005315,120]
[331509509,1720444826611,-521.56,0.0005315,120]
[331509510,1720444826701,-4816.6,0.0005315,120]
[331509511,1720444826790,-500.0,0.0005315,120]
[331509512,1720444826879,-500.0,0.0005315,120]
[331509513,1720444826970,-372.63023948,0.0005315,120]
[331509514,1720444827062,-5616.29,0.0005315,120]
[331509515,1720444827154,-500.0,0.0005315,120]
[331509516,1720444827248,-4754.74,0.0005315,120]
[331509517,1720444827343,-2818.99,0.0005315,120]
[331509518,1720444827446,-3610.51,0.0005315,120]
[331509519,1720444827549,-2101.17,0.0005315,120]
[331509520,1720444827648,-7384.37,0.0005315,120]
[331509521,1720444827740,-500.0,0.0005315,120]
[331509522,1720444827829,-13611.45,0.0005315,120]
[331509523,1720444827917,-965.22,0.0005315,120]
[331509524,1720444828008,-547.56,0.0005315,120]
[331509525,1720444828095,-500.0,0.0005315,120]
[331509526,1720444828186,-583.78,0.0005315,120]
[331509527,1720444828277,-3854.26,0.0005315,120]
[331509528,1720444828364,-10162.8,0.0005315,120]
[331509529,1720444828452,-500.0,0.0005315,120]
[331509530,1720444828544,-938.43,0.0005315,120]
[331509531,1720444828634,-1124.37,0.0005315,120]
[331509532,1720444828719,-4983.01,0.0005315,120]
[331509533,1720444828807,-5118.07,0.0005315,120]
[331509534,1720444828895,-2432.5,0.0005315,120]
[331509535,1720444828984,-5565.77,0.0005315,120]
[331509536,1720444829080,-2686.57,0.0005315,120]
[331509537,1720444829177,-524.96,0.0005315,120]
[331509538,1720444829274,-500.0,0.0005315,120]
[331509539,1720444829367,-1454.12,0.0005315,120]
[331509540,1720444829461,-5036.27,0.0005315,120]
[331509541,1720444829559,-2304.81,0.0005315,120]
[331509542,1720444829655,-1067.33,0.0005315,120]
[331509543,1720444829750,-1767.38,0.0005315,120]
[331509544,1720444830115,-500.0,0.0005315,120]
[331509545,1720444830210,-5646.1,0.0005315,120]
[331509546,1720444830308,-4701.07,0.0005315,120]
[331509547,1720444830406,-4919.53,0.0005315,120]
[331509548,1720444830504,-9047.3,0.0005315,120]
[331509549,1720444830598,-500.0,0.0005315,120]
[331509550,1720444830691,-1659.74,0.0005315,120]
[331509551,1720444830784,-1525.81,0.0005315,120]
[331509552,1720444830875,-2133.05,0.0005315,120]
[331509553,1720444830968,-500.0,0.0005315,120]
[331509554,1720444831061,-7680.57,0.0005315,120]
[331509555,1720444831152,-3352.13,0.0005315,120]
[331509556,1720444831244,-4421.49,0.0005315,120]
[331509557,1720444831336,-1759.96,0.0005315,120]
[331509558,1720444831427,-3903.92,0.0005315,120]
[331509559,1720444831518,-500.0,0.0005315,120]
[331509560,1720444831608,-1631.9,0.0005315,120]
[331509561,1720444831699,-3833.49,0.0005315,120]
[331509562,1720444831788,-5951.51,0.0005315,120]
[331509563,1720444831876,-5146.59,0.0005315,120]
[331509564,1720444831968,-2176.54,0.0005315,120]
[331509565,1720444832059,-6347.68,0.0005315,120]
[331509566,1720444832155,-1088.69,0.0005315,120]
[331509567,1720444832253,-500.0,0.0005315,120]
[331509568,1720444832347,-23579.31,0.0005315,120]
[331509569,1720444832434,-500.0,0.0005315,120]
[331509570,1720444832523,-3966.4,0.0005315,120]
[331509571,1720444832623,-2068.28,0.0005315,120]
[331509572,1720444832724,-2578.3,0.0005315,120]
[331509573,1720444832827,-3921.63,0.0005315,120]
[331509574,1720444832934,-58243.57,0.0005315,120]
[331509575,1720444833037,-508.44,0.0005315,120]
[331509576,1720444833130,-627.12,0.0005315,120]
[331509577,1720444833222,-24232.54,0.0005315,120]
[331509578,1720444833316,-500.0,0.0005315,120]
[331509579,1720444833410,-552.36,0.0005315,120]
[331509580,1720444833503,-5320.57,0.0005315,120]
[331509581,1720444833596,-6752.46,0.0005315,120]
[331509582,1720444833686,-623.17,0.0005315,120]
[331509583,1720444833777,-500.0,0.0005315,120]
[331509584,1720444833869,-695.92,0.0005315,120]
[331509585,1720444833961,-2080.87,0.0005315,120]
[331509586,1720444834061,-6849.11,0.0005315,120]
[331509587,1720444834163,-500.0,0.0005315,120]
[331509588,1720444834264,-1687.12,0.0005315,120]
[331509589,1720444834358,-1101.67,0.0005315,120]
[331509590,1720444834453,-741.08,0.0005315,120]
[331509591,1720444834548,-500.0,0.0005315,120]
[331509592,1720444834643,-382.89757768,0.0005315,120]
[331509593,1720444834738,-6100.12,0.0005315,120]
[331509594,1720444834833,-1353.36,0.0005315,120]
[331509595,1720444834930,-500.0,0.0005315,120]
[331509596,1720444835027,-6271.45,0.0005315,120]
[331509597,1720444835122,-2621.09,0.0005315,120]
[331509598,1720444835218,-2109.31,0.0005315,120]
[331509599,1720444835315,-12321.64,0.0005315,120]
[331509600,1720444835412,-538.98,0.0005315,120]
[331509601,1720444835511,-5668.6,0.0005315,120]
[331509602,1720444835607,-6141.18,0.0005315,120]
[331509603,1720444835703,-500.0,0.0005315,120]
[331509604,1720444835800,-500.0,0.0005315,120]
[331509605,1720444835898,-1783.66,0.0005315,120]
[331509606,1720444836004,-768.98,0.0005315,120]
[331509607,1720444836104,-639.8,0.0005315,120]
[331509608,1720444836199,-1148.58,0.0005315,120]
[331509609,1720444836294,-193.73410238,0.0005315,120]
[331509610,1720444836390,-1046.64,0.0005315,120]
[331509611,1720444836486,-500.0,0.0005315,120]
[331509612,1720444836581,-608.24,0.0005315,120]
[331509613,1720444836676,-500.0,0.0005315,120]
[331509614,1720444836768,-2383.64,0.0005315,120]
[331509615,1720444836867,-1380.83,0.0005315,120]
[331509616,1720444836965,-2726.39,0.0005315,120]
[331509617,1720444837062,-1348.55,0.0005315,120]
[331509618,1720444837161,-646.48,0.0005315,120]
[331509619,1720444837266,-5858.28,0.0005315,120]
[331509620,1720444837366,-3087.04,0.0005315,120]
[331509621,1720444837471,-500.0,0.0005315,120]
[331509622,1720444837571,-768.16,0.0005315,120]
[331509623,1720444837668,-1098.42,0.0005315,120]
[331509624,1720444837765,-1151.32,0.0005315,120]
[331509625,1720444837859,-28264.79,0.0005315,120]
[331509626,1720444837954,-500.0,0.0005315,120]
[331509627,1720444838048,-1188.45,0.0005315,120]
[331509628,1720444838141,-3804.3,0.0005315,120]
[331509629,1720444838240,-500.0,0.0005315,120]
[331509630,1720444838342,-634.13,0.0005315,120]
[331509631,1720444838443,-1074.63,0.0005315,120]
[331509632,1720444838537,-972.69,0.0005315,120]
[331509633,1720444838633,-5641.11,0.0005315,120]
[331509634,1720444838730,-1971.31,0.0005315,120]
[331509635,1720444838822,-500.0,0.0005315,120]
[331509636,1720444838919,-652.19,0.0005315,120]
[331509637,1720444839016,-500.0,0.0005315,120]
[331509638,1720444839118,-500.0,0.0005315,120]
[331509639,1720444839222,-1765.23,0.0005315,120]
[331509640,1720444839323,-1216.89,0.0005315,120]
[331509641,1720444839419,-500.0,0.0005315,120]
[331509642,1720444839523,-500.0,0.0005315,120]
[331509643,1720444839627,-5055.86,0.0005315,120]
[331509644,1720444839724,-500.0,0.0005315,120]
[331509645,1720444839823,-711.2,0.0005315,120]
[331509646,1720444839920,-2570.12,0.0005315,120]
[331509647,1720444840022,-2420.66,0.0005315,120]
[331509648,1720444840125,-2264.16,0.0005315,120]
[331509649,1720444840229,-672.24,0.0005315,120]
[331509650,1720444840330,-3711.44,0.0005315,120]
[331509651,1720444840438,-3195.91,0.0005315,120]
[331509652,1720444840538,-500.0,0.0005315,120]
[331509653,1720444840643,-500.0,0.0005315,120]
[331509654,1720444840744,-2590.75,0.0005315,120]
[331509655,1720444840842,-822.01,0.0005315,120]
[331509656,1720444840941,-3178.37,0.0005315,120]
[331509657,1720444841039,-500.0,0.0005315,120]
[331509658,1720444841136,-1501.03,0.0005315,120]
[331509659,1720444841231,-4652.58,0.0005315,120]
[331509660,1720444841324,-4176.17,0.0005315,120]
[331509661,1720444841421,-607.4,0.0005315,120]
[331509662,1720444841520,-1039.34,0.0005315,120]
[331509663,1720444841618,-559.75979628,0.0005315,120]
[331509664,1720444841711,-517.37,0.0005315,120]
[331509665,1720444841803,-724.29,0.0005315,120]
[331509666,1720444841896,-500.0,0.0005315,120]
[331509667,1720444841990,-1620.57,0.0005315,120]
[331509668,1720444842083,-1793.43,0.0005315,120]
[331509669,1720444842180,-12165.5,0.0005315,120]
[331509670,1720444842280,-976.96,0.0005315,120]
[331509671,1720444842379,-2857.78,0.0005315,120]
[331509672,1720444842478,-935.81,0.0005315,120]
[331509673,1720444842567,-794.19,0.0005315,120]
[331509674,1720444842657,-1096.71,0.0005315,120]
[331509675,1720444842747,-812.1,0.0005315,120]
[331509676,1720444842838,-2680.32,0.0005315,120]
[331509677,1720444842930,-1019.65,0.0005315,120]
[331509678,1720444843020,-500.0,0.0005315,120]
[331509679,1720444843112,-1152.98,0.0005315,120]
[331509680,1720444843205,-7204.83,0.0005315,120]
[331509681,1720444843300,-2326.97,0.0005315,120]
[331509682,1720444843391,-2038.8,0.0005315,120]
[331509683,1720444843480,-1237.99,0.0005315,120]
[331509684,1720444843568,-671.15,0.0005315,120]
[331509685,1720444843658,-507.99,0.0005315,120]
[331509686,1720444843747,-500.0,0.0005315,120]
[331509687,1720444843836,-943.16,0.0005315,120]
[331509688,1720444843924,-5931.18,0.0005315,120]
[331509689,1720444844018,-4626.82,0.0005315,120]
[331509690,1720444844119,-789.69,0.0005315,120]
[331509691,1720444844218,-1802.66,0.0005315,120]
[331509692,1720444844313,-2327.97,0.0005315,120]
[331509693,1720444844406,-2045.63,0.0005315,120]
[331509694,1720444844500,-2179.21,0.0005315,120]
[331509695,1720444844594,-679.68,0.0005315,120]
[331509696,1720444844690,-500.0,0.0005315,120]
[331509697,1720444844787,-5851.04,0.0005315,120]
[331509698,1720444844886,-790.26,0.0005315,120]
[331509699,1720444844981,-3857.14,0.0005315,120]
[331509700,1720444845079,-918.0,0.0005315,120]
[331509701,1720444845180,-1071.27,0.0005315,120]
[331509702,1720444845292,-500.0,0.0005315,120]
[331509703,1720444845389,-9335.91,0.0005315,120]
[331509704,1720444845486,-971.7,0.0005315,120]
[331509705,1720444845590,-1237.8,0.0005315,120]
[331509706,1720444845691,-500.0,0.0005315,120]
[331509707,1720444845788,-1080.21,0.0005315,120]
[331509708,1720444845885,-500.0,0.0005315,120]
[331509709,1720444845983,-500.0,0.0005315,120]
[331509710,1720444846081,-500.0,0.0005315,120]
[331509711,1720444846179,-4880.04,0.0005315,120]
[331509712,1720444846275,-836.04,0.0005315,120]
[331509713,1720444846369,-2472.65,0.0005315,120]
[331509714,1720444846462,-1021.84,0.0005315,120]
[331509715,1720444846559,-550.11,0.0005315,120]
[331509716,1720444846653,-500.0,0.0005315,120]
[331509717,1720444846749,-1033.51,0.0005315,120]
[331509718,1720444846844,-500.0,0.0005315,120]
[331509719,1720444846937,-820.16,0.0005315,120]
[331509720,1720444848059,-1695.51,0.0005315,120]
[331509721,1720444848206,-511.6,0.0005315,120]
[331509722,1720444848308,-3132.94,0.0005315,120]
[331509723,1720444848404,-1913.66,0.0005315,120]
[331509724,1720444848500,-4157.78,0.0005315,120]
[331509725,1720444848598,-1698.07,0.0005315,120]
[331509726,1720444848693,-652.08,0.0005315,120]
[331509727,1720444848789,-500.0,0.0005315,120]
[331509728,1720444848888,-637.31,0.0005315,120]
[331509729,1720444848982,-572.94,0.0005315,120]
[331509730,1720444849079,-3335.79,0.0005315,120]
[331509731,1720444849181,-1910.14,0.0005315,120]
[331509732,1720444849281,-2108.8,0.0005315,120]
[331509733,1720444849382,-694.53,0.0005315,120]
[331509734,1720444849482,-500.0,0.0005315,120]
[331509735,1720444849577,-500.0,0.0005315,120]
[331509736,1720444849675,-1154.16,0.0005315,120]
[331509737,1720444849778,-1564.34,0.0005315,120]
[331509738,1720444849875,-500.0,0.0005315,120]
[331509739,1720444849975,-2059.4,0.0005315,120]
[331509740,1720444850080,-3033.38,0.0005315,120]
[331509741,1720444850183,-500.0,0.0005315,120]
[331509742,1720444850285,-989.58,0.0005315,120]
[331509743,1720444850386,-500.0,0.0005315,120]
[331509744,1720444850490,-2399.84,0.0005315,120]
[331509745,1720444850593,-500.0,0.0005315,120]
[331509746,1720444850691,-1672.29,0.0005315,120]
[331509747,1720444850786,-500.0,0.0005315,120]
[331509748,1720444850880,-1604.31,0.0005315,120]
[331509749,1720444850975,-500.0,0.0005315,120]
[331509750,1720444851070,-500.0,0.0005315,120]
[331509751,1720444851165,-500.0,0.0005315,120]
[331509752,1720444851262,-2417.35,0.0005315,120]
[331509753,1720444851358,-500.0,0.0005315,120]
[331509754,1720444851455,-500.0,0.0005315,120]
[331509755,1720444851549,-1416.43,0.0005315,120]
[331509756,1720444851648,-691.6,0.0005315,120]
[331509757,1720444851744,-972.54,0.0005315,120]
[331509758,1720444851839,-500.0,0.0005315,120]
[331509759,1720444851933,-1198.2,0.0005315,120]
[331509760,1720444852026,-992.98,0.0005315,120]
[331509761,1720444852118,-1035.8,0.0005315,120]
[331509762,1720444852211,-542.92,0.0005315,120]
[331509763,1720444852309,-3821.85,0.0005315,120]
[331509764,1720444852407,-971.56,0.0005315,120]
[331509765,1720444852505,-587.73,0.0005315,120]
[331509766,1720444852599,-1317.09,0.0005315,120]
[331509767,1720444852691,-189.02295599,0.0005315,120]
[331509768,1720444852782,-1389.08,0.0005315,120]
[331509769,1720444852868,-1639.49,0.0005315,120]
[331509770,1720444852966,-867.82,0.0005315,120]
[331509771,1720444853058,-500.0,0.0005315,120]
[331509772,1720444853147,-500.0,0.0005315,120]
[331509773,1720444853234,-500.0,0.0005315,120]
[331509774,1720444853321,-615.39,0.0005315,120]
[331509775,1720444853412,-2430.97,0.0005315,120]
[331509776,1720444853499,-500.0,0.0005315,120]
[331509777,1720444853588,-500.0,0.0005315,120]
[331509778,1720444853680,-2066.55,0.0005315,120]
[331509779,1720444853773,-921.41,0.0005315,120]
[331509780,1720444853866,-548.85,0.0005315,120]
[331509781,1720444853960,-500.0,0.0005315,120]
[331509782,1720444854057,-1045.8,0.0005315,120]
[331509783,1720444854158,-2785.91,0.0005315,120]
[331509784,1720444854259,-3346.99,0.0005315,120]
[331509785,1720444854355,-314.77616812,0.0005315,120]
[331509786,1720444854452,-613.69,0.0005315,120]
[331509787,1720444854551,-500.0,0.0005315,120]
[331509788,1720444854649,-2884.68,0.0005315,120]
[331509789,1720444854746,-1223.29,0.0005315,120]
[331509790,1720444854844,-521.67,0.0005315,120]
[331509791,1720444854940,-1430.22,0.0005315,120]
[331509792,1720444855037,-500.0,0.0005315,120]
[331509793,1720444855136,-1451.36,0.0005315,120]
[331509794,1720444855237,-611.61,0.0005315,120]
[331509795,1720444855341,-729.84,0.0005315,120]
[331509796,1720444855448,-919.43,0.0005315,120]
[331509797,1720444855542,-500.0,0.0005315,120]
[331509798,1720444855636,-1252.38,0.0005315,120]
[331509799,1720444855728,-902.66,0.0005315,120]
[331509800,1720444855814,-1130.53,0.0005315,120]
[331509801,1720444855901,-1710.79,0.0005315,120]
[331509802,1720444855989,-1387.34,0.0005315,120]
[331509803,1720444856079,-558.45,0.0005315,120]
[331509804,1720444856173,-595.41,0.0005315,120]
[331509805,1720444856265,-801.29,0.0005315,120]
[331509806,1720444856353,-500.0,0.0005315,120]
[331509807,1720444856442,-500.0,0.0005315,120]
[331509808,1720444856527,-681.95,0.0005315,120]
[331509809,1720444856618,-647.19,0.0005315,120]
[331509810,1720444856704,-500.0,0.0005315,120]
[331509811,1720444856790,-500.0,0.0005315,120]
[331509812,1720444856876,-500.0,0.0005315,120]
[331509813,1720444856963,-920.91,0.0005315,120]
[331509814,1720444857050,-809.57,0.0005315,120]
[331509815,1720444857137,-508.51,0.0005315,120]
[331509816,1720444857224,-866.07,0.0005315,120]
[331509817,1720444857311,-1342.46,0.0005315,120]
[331509818,1720444857399,-500.0,0.0005315,120]
[331509819,1720444857490,-669.08,0.0005315,120]
[331509820,1720444857580,-500.0,0.0005315,120]
[331509821,1720444857671,-500.0,0.0005315,120]
[331509822,1720444857928,-924.87,0.0005315,120]
[331509823,1720444858013,-1526.59,0.0005315,120]
[331509824,1720444858106,-2651.63,0.0005315,120]
[331509825,1720444858201,-500.0,0.0005315,120]
[331509826,1720444858287,-2744.63,0.0005315,120]
[331509827,1720444858370,-2267.0,0.0005315,120]
[331509828,1720444858454,-482.16,0.0005315,120]
[331509829,1720444858542,-574.0,0.0005315,120]
[331509830,1720444858625,-775.01,0.0005315,120]
[331509831,1720444858711,-500.0,0.0005315,120]
[331509832,1720444858794,-1695.04,0.0005315,120]
[331509833,1720444858877,-500.0,0.0005315,120]
[331509834,1720444858964,-500.0,0.0005315,120]
[331509835,1720444859049,-500.0,0.0005315,120]
[331509836,1720444859138,-1245.56,0.0005315,120]
[331509837,1720444859226,-785.15,0.0005315,120]
[331509838,1720444859314,-1245.98,0.0005315,120]
[331509839,1720444859405,-1155.34,0.0005315,120]
[331509840,1720444859496,-500.0,0.0005315,120]
[331509841,1720444859584,-500.0,0.0005315,120]
[331509842,1720444859672,-555.03,0.0005315,120]
[331509843,1720444859759,-803.39,0.0005315,120]
[331509844,1720444859846,-500.0,0.0005315,120]
[331509845,1720444859935,-1305.54,0.0005315,120]
[331509846,1720444860026,-949.65,0.0005315,120]
[331509847,1720444860116,-197.49211523,0.0005315,120]
[331509848,1720444860219,-500.0,0.0005315,120]
[331509849,1720444860313,-500.0,0.0005315,120]
[331509850,1720444860405,-1347.23,0.0005315,120]
[331509851,1720444860501,-568.39,0.0005315,120]
[331509852,1720444860593,-500.0,0.0005315,120]
[331509853,1720444860686,-784.35,0.0005315,120]
[331509854,1720444860782,-796.74,0.0005315,120]
[331509855,1720444860875,-500.0,0.0005315,120]
[331509856,1720444860969,-838.64,0.0005315,120]
[331509857,1720444861061,-500.0,0.0005315,120]
[331509858,1720444861155,-739.18,0.0005315,120]
[331509859,1720444861247,-995.21,0.0005315,120]
[331509860,1720444861340,-1155.36,0.0005315,120]
[331509861,1720444861430,-751.81,0.0005315,120]
[331509862,1720444861522,-1142.72,0.0005315,120]
[331509863,1720444861611,-2126.32,0.0005315,120]
[331509864,1720444861695,-1163.78,0.0005315,120]
[331509865,1720444861777,-743.53,0.0005315,120]
[331509866,1720444861861,-327.47963265,0.0005315,120]
[331509867,1720444861945,-934.66,0.0005315,120]
[331509868,1720444862028,-995.22,0.0005315,120]
[331509869,1720444862113,-784.36,0.0005315,120]
[331509870,1720444862201,-1579.18,0.0005315,120]
[331509871,1720444862290,-1658.26,0.0005315,120]
[331509872,1720444862374,-500.0,0.0005315,120]
[331509873,1720444862458,-500.0,0.0005315,120]
[331509874,1720444862544,-580.63,0.0005315,120]
[331509875,1720444862627,-693.77,0.0005315,120]
[331509876,1720444862707,-633.12,0.0005315,120]
[331509877,1720444862786,-1079.99,0.0005315,120]
[331509878,1720444862866,-510.79,0.0005315,120]
[331509879,1720444862948,-500.0,0.0005315,120]
[331509880,1720444863032,-534.95,0.0005315,120]
[331509881,1720444863125,-607.70043276,0.0005315,120]
[331509882,1720444863218,-808.16,0.0005315,120]
[331509883,1720444863303,-652.14,0.0005315,120]
[331509884,1720444863389,-2055.98,0.0005315,120]
[331509885,1720444863473,-500.0,0.0005315,120]
[331509886,1720444863559,-837.72,0.0005315,120]
[331509887,1720444863643,-500.0,0.0005315,120]
[331509888,1720444863728,-974.55,0.0005315,120]
[331509889,1720444863815,-500.0,0.0005315,120]
[331509890,1720444863898,-668.71,0.0005315,120]
[331509891,1720444863986,-918.92,0.0005315,120]
[331509892,1720444864072,-733.46,0.0005315,120]
[331509893,1720444864158,-500.0,0.0005315,120]
[331509894,1720444864248,-843.38,0.0005315,120]
[331509895,1720444864337,-777.5,0.0005315,120]
[331509896,1720444864423,-500.0,0.0005315,120]
[331509897,1720444864507,-465.281361,0.0005315,120]
[331509898,1720444864596,-500.0,0.0005315,120]
[331509899,1720444864683,-500.0,0.0005315,120]
[331509900,1720444864768,-852.37,0.0005315,120]
[331509901,1720444864852,-500.0,0.0005315,120]
[331509902,1720444864937,-1186.97,0.0005315,120]
[331509903,1720444865026,-1241.83,0.0005315,120]
[331509904,1720444865110,-807.64,0.0005315,120]
[331509905,1720444865197,-500.0,0.0005315,120]
[331509906,1720444865284,-803.38,0.0005315,120]
[331509907,1720444865371,-657.3,0.0005315,120]
[331509908,1720444865461,-1355.78,0.0005315,120]
[331509909,1720444865556,-500.0,0.0005315,120]
[331509910,1720444865645,-500.0,0.0005315,120]
[331509911,1720444865733,-357.11773032,0.0005315,120]
[331509912,1720444865818,-500.0,0.0005315,120]
[331509913,1720444865905,-454.06,0.0005315,120]
[331509914,1720444865992,-368.26618653,0.0005315,120]
[331509915,1720444866078,-578.50297711,0.0005315,120]
[331509916,1720444866167,-500.0,0.0005315,120]
[331509917,1720444866256,-500.0,0.0005315,120]
[331509918,1720444866346,-525.31,0.0005315,120]
[331509919,1720444866436,-682.0,0.0005315,120]
[331509920,1720444866526,-500.0,0.0005315,120]
[331509921,1720444866608,-500.0,0.0005315,120]
[331509922,1720444866698,-1095.38,0.0005315,120]
[331509923,1720444866784,-1081.98,0.0005315,120]
[331509924,1720444866869,-500.0,0.0005315,120]
[331509925,1720444866960,-500.0,0.0005315,120]
[331509926,1720444867045,-712.75,0.0005315,120]
[331509927,1720444867350,-766.48,0.0005315,120]
[331509928,1720444867435,-500.0,0.0005315,120]
[331509929,1720444867518,-989.73,0.0005315,120]
[331509930,1720444867599,-887.36,0.0005315,120]
[331509931,1720444867682,-568.6,0.0005315,120]
[331509932,1720444867767,-364.96604578,0.0005315,120]
[331509933,1720444867853,-665.12,0.0005315,120]
[331509934,1720444867939,-500.0,0.0005315,120]
[331509935,1720444868035,-500.0,0.0005315,120]
[331509936,1720444868131,-785.44,0.0005315,120]
[331509937,1720444868226,-2486.56,0.0005315,120]
[331509938,1720444868313,-500.0,0.0005315,120]
[331509939,1720444868397,-500.0,0.0005315,120]
[331509940,1720444868487,-500.0,0.0005315,120]
[331509941,1720444868579,-500.0,0.0005315,120]
[331509942,1720444868669,-891.8,0.0005315,120]
[331509943,1720444868755,-500.0,0.0005315,120]
[331509944,1720444868842,-500.0,0.0005315,120]
[331509945,1720444868929,-608.44,0.0005315,120]
[331509946,1720444869027,-705.57,0.0005315,120]
[331509947,1720444869120,-500.0,0.0005315,120]
[331509948,1720444869213,-502.79,0.0005315,120]
[331509949,1720444869312,-500.0,0.0005315,120]
[331509950,1720444869410,-605.18,0.0005315,120]
[331509951,1720444869508,-500.0,0.0005315,120]
[331509952,1720444869603,-582.04233509,0.0005315,120]
[331509953,1720444869698,-500.0,0.0005315,120]
[331509954,1720444869789,-500.0,0.0005315,120]
[331509955,1720444869880,-500.0,0.0005315,120]
[331509956,1720444869972,-712.81,0.0005315,120]
[331509957,1720444870066,-534.72,0.0005315,120]
[331509958,1720444870158,-1760.36,0.0005315,120]
[331509959,1720444870244,-800.08,0.0005315,120]
[331509960,1720444870333,-500.0,0.0005315,120]
[331509961,1720444870419,-894.69,0.0005315,120]
[331509962,1720444870507,-723.54,0.0005315,120]
[331509963,1720444870595,-530.59,0.0005315,120]
[331509964,1720444870683,-839.95,0.0005315,120]
[331509965,1720444870779,-511.1,0.0005315,120]
[331509966,1720444870869,-760.52,0.0005315,120]
[331509967,1720444870962,-866.49,0.0005315,120]
[331509968,1720444871051,-500.0,0.0005315,120]
[331509969,1720444871137,-500.0,0.0005315,120]
[331509970,1720444871224,-500.0,0.0005315,120]
[331509971,1720444871312,-500.0,0.0005315,120]
[331509972,1720444871411,-500.0,0.0005315,120]
[331509973,1720444871504,-190.08073657,0.0005315,120]
[331509974,1720444871597,-500.0,0.0005315,120]
[331509975,1720444871678,-893.31,0.0005315,120]
[331509976,1720444871759,-500.0,0.0005315,120]
[331509977,1720444871840,-500.0,0.0005315,120]
[331509978,1720444871923,-500.0,0.0005315,120]
[331509979,1720444872006,-500.0,0.0005315,120]
[331509980,1720444872088,-1290.88,0.0005315,120]
[331509981,1720444872170,-189.23635647,0.0005315,120]
[331509982,1720444872253,-585.61,0.0005315,120]
[331509983,1720444872336,-574.25,0.0005315,120]
[331509984,1720444872420,-500.0,0.0005315,120]
[331509985,1720444872503,-476.56388315,0.0005315,120]
[331509986,1720444872585,-891.99,0.0005315,120]
[331509987,1720444872667,-479.67880451,0.0005315,120]
[331509988,1720444872746,-518.21,0.0005315,120]
[331509989,1720444872826,-500.0,0.0005315,120]
[331509990,1720444872907,-973.06,0.0005315,120]
[331509991,1720444872994,-1101.05,0.0005315,120]
[331509992,1720444873090,-1143.52,0.0005315,120]
[331509993,1720444873188,-589.06,0.0005315,120]
[331509994,1720444873288,-515.78,0.0005315,120]
[331509995,1720444873377,-729.17,0.0005315,120]
[331509996,1720444873463,-500.0,0.0005315,120]